[Event "Early-Titled-Tuesday-Blitz-May-14-2024"]
[Site "Chess.com"]
[Date "2024.05.14"]
[Round "1"]
[White "PlotnikovPavel"]
[Black "Mysterio47"]
[Result "0-1"]
[WhiteElo "2447"]
[BlackElo "2787"]
[TimeControl "180+1"]
[EndTime "8:07:30 PDT"]
[Termination "Mysterio47 won on time"]

1. e4 {[%clk 0:03:00.9]} 1... c5 {[%clk 0:02:59.5]} 2. c3 {[%clk 0:03:00.3]}
2... Nf6 {[%clk 0:02:58.4]} 3. e5 {[%clk 0:03:00.3]} 3... Ng8 {[%clk 0:02:51.9]}
4. d4 {[%clk 0:03:01.2]} 4... cxd4 {[%clk 0:02:51.6]} 5. cxd4 {[%clk 0:03:01.3]}
5... d6 {[%clk 0:02:52.3]} 6. Nf3 {[%clk 0:02:49.4]} 6... Nc6 {[%clk 0:02:50.8]}
7. exd6 {[%clk 0:02:41.8]} 7... Qxd6 {[%clk 0:02:50.7]} 8. Nc3 {[%clk
0:02:41.3]} 8... e6 {[%clk 0:02:48.9]} 9. Bc4 {[%clk 0:02:33.5]} 9... Nf6 {[%clk
0:02:46.9]} 10. O-O {[%clk 0:02:31.9]} 10... Be7 {[%clk 0:02:46.5]} 11. Nb5
{[%clk 0:02:17.3]} 11... Qb8 {[%clk 0:02:46.2]} 12. g3 {[%clk 0:02:11.5]} 12...
Nh5 {[%clk 0:02:13.7]} 13. Ne5 {[%clk 0:01:45.8]} 13... g6 {[%clk 0:02:10.7]}
14. Bh6 {[%clk 0:01:13.7]} 14... a6 {[%clk 0:02:03.5]} 15. Nc3 {[%clk
0:01:09.1]} 15... Nxe5 {[%clk 0:01:57.5]} 16. dxe5 {[%clk 0:01:09]} 16... Qxe5
{[%clk 0:01:58.4]} 17. Re1 {[%clk 0:01:07]} 17... Qc5 {[%clk 0:01:53.1]} 18. Bb3
{[%clk 0:00:47.8]} 18... Nf6 {[%clk 0:01:48.3]} 19. Rc1 {[%clk 0:00:42.2]} 19...
Qh5 {[%clk 0:01:46.5]} 20. Bg7 {[%clk 0:00:38.8]} 20... Rg8 {[%clk 0:01:42.9]}
21. Bxf6 {[%clk 0:00:37.3]} 21... Qxd1 {[%clk 0:01:42.2]} 22. Rcxd1 {[%clk
0:00:33]} 22... Bxf6 {[%clk 0:01:42.5]} 23. Ne4 {[%clk 0:00:26.9]} 23... Ke7
{[%clk 0:01:36.5]} 24. g4 {[%clk 0:00:22.2]} 24... Bxb2 {[%clk 0:01:33.7]} 25.
Re2 {[%clk 0:00:21.9]} 25... Ba3 {[%clk 0:01:25.7]} 26. Rc2 {[%clk 0:00:20]}
26... Rd8 {[%clk 0:01:03]} 27. Rc7+ {[%clk 0:00:19.6]} 27... Rd7 {[%clk
0:01:03.3]} 28. Rdxd7+ {[%clk 0:00:19.2]} 28... Bxd7 {[%clk 0:01:03.7]} 29. Rxb7
{[%clk 0:00:19.1]} 29... f5 {[%clk 0:00:43]} 30. Ba4 {[%clk 0:00:18.2]} 30...
Rd8 {[%clk 0:00:41.9]} 31. Ng5 {[%clk 0:00:14.7]} 31... h6 {[%clk 0:00:30.8]}
32. Nf3 {[%clk 0:00:13.5]} 32... Bd6 {[%clk 0:00:27.4]} 33. Nd4 {[%clk
0:00:12.4]} 33... Ke8 {[%clk 0:00:20.8]} 34. Rxd7 {[%clk 0:00:12.1]} 34... Rxd7
{[%clk 0:00:20.3]} 35. Nxe6 {[%clk 0:00:12.7]} 35... fxg4 {[%clk 0:00:19.1]} 36.
Nd4 {[%clk 0:00:04.1]} 36... Ke7 {[%clk 0:00:18.3]} 37. Nc6+ {[%clk 0:00:04.3]}
37... Kf6 {[%clk 0:00:18.4]} 38. Nb4 {[%clk 0:00:03]} 38... Rd8 {[%clk
0:00:16.9]} 39. Nd5+ {[%clk 0:00:02.9]} 39... Ke5 {[%clk 0:00:17.2]} 0-1

[Event "Early-Titled-Tuesday-Blitz-May-14-2024"]
[Site "Chess.com"]
[Date "2024.05.14"]
[Round "1"]
[White "AlexanderKing"]
[Black "bennyficial"]
[Result "0-1"]
[WhiteElo "2551"]
[BlackElo "2144"]
[TimeControl "180+1"]
[EndTime "8:07:31 PDT"]
[Termination "bennyficial won by resignation"]

1. Nf3 {[%clk 0:02:57.9]} 1... d5 {[%clk 0:02:55.5]} 2. c4 {[%clk 0:02:55.8]}
2... e6 {[%clk 0:02:55]} 3. g3 {[%clk 0:02:55.4]} 3... Nf6 {[%clk 0:02:53.6]} 4.
Bg2 {[%clk 0:02:55.5]} 4... dxc4 {[%clk 0:02:49.8]} 5. Qa4+ {[%clk 0:02:54.3]}
5... Bd7 {[%clk 0:02:47.8]} 6. Qxc4 {[%clk 0:02:54.3]} 6... c5 {[%clk
0:02:41.7]} 7. O-O {[%clk 0:02:42.1]} 7... Nc6 {[%clk 0:02:38.3]} 8. d4 {[%clk
0:02:41.9]} 8... cxd4 {[%clk 0:02:34.4]} 9. Nxd4 {[%clk 0:02:42.8]} 9... Rc8
{[%clk 0:02:11.8]} 10. Nxc6 {[%clk 0:01:40.1]} 10... Bxc6 {[%clk 0:02:12.7]} 11.
Bxc6+ {[%clk 0:01:35.5]} 11... Rxc6 {[%clk 0:02:13.6]} 12. Qa4 {[%clk 0:01:36]}
12... a6 {[%clk 0:01:55.8]} 13. Nc3 {[%clk 0:01:25.3]} 13... Be7 {[%clk
0:01:49.9]} 14. Be3 {[%clk 0:01:06.4]} 14... O-O {[%clk 0:01:44.7]} 15. Rfd1
{[%clk 0:01:06.6]} 15... Qc8 {[%clk 0:01:36.2]} 16. Qb3 {[%clk 0:00:36.1]} 16...
b5 {[%clk 0:01:35.3]} 17. a3 {[%clk 0:00:33.7]} 17... Bc5 {[%clk 0:01:32.7]} 18.
Bg5 {[%clk 0:00:20]} 18... Bxf2+ {[%clk 0:01:20.8]} 19. Kxf2 {[%clk 0:00:18.1]}
19... Rxc3 {[%clk 0:01:21.1]} 20. bxc3 {[%clk 0:00:14.6]} 20... Ne4+ {[%clk
0:01:20.9]} 21. Kg1 {[%clk 0:00:11.9]} 21... Qc5+ {[%clk 0:01:15.6]} 22. Kh1
{[%clk 0:00:03.5]} 22... Qxg5 {[%clk 0:01:09.5]} 23. Rd4 {[%clk 0:00:01.9]}
23... Qe3 {[%clk 0:01:04.9]} 24. Qc2 {[%clk 0:00:01.6]} 24... f5 {[%clk
0:01:01.4]} 25. Rd3 {[%clk 0:00:01.2]} 25... Nf2+ {[%clk 0:00:59.3]} 26. Kg2
{[%clk 0:00:01.8]} 26... Nxd3 {[%clk 0:01:00]} 27. exd3 {[%clk 0:00:02.5]} 27...
Rd8 {[%clk 0:00:58.3]} 28. Rd1 {[%clk 0:00:02.8]} 28... g5 {[%clk 0:00:56.6]}
29. Qd2 {[%clk 0:00:03.2]} 29... Qxd2+ {[%clk 0:00:55.8]} 30. Rxd2 {[%clk
0:00:04.1]} 30... e5 {[%clk 0:00:56.2]} 31. Re2 {[%clk 0:00:02.4]} 31... Rd5
{[%clk 0:00:55.2]} 32. Kf2 {[%clk 0:00:01.7]} 32... Kf7 {[%clk 0:00:55.3]} 33.
Ke1 {[%clk 0:00:01.4]} 33... Kf6 {[%clk 0:00:54.8]} 34. Kd2 {[%clk 0:00:01.8]}
34... h5 {[%clk 0:00:52.6]} 35. Kc2 {[%clk 0:00:01.9]} 35... h4 {[%clk
0:00:52.8]} 36. Rf2 {[%clk 0:00:01.8]} 36... hxg3 {[%clk 0:00:51.6]} 37. hxg3
{[%clk 0:00:02.7]} 37... g4 {[%clk 0:00:49.8]} 38. Rh2 {[%clk 0:00:01.6]} 38...
Kg5 {[%clk 0:00:49.1]} 39. Rh8 {[%clk 0:00:02]} 39... f4 {[%clk 0:00:48.2]} 40.
Rg8+ {[%clk 0:00:02.3]} 40... Kf5 {[%clk 0:00:48]} 41. Rf8+ {[%clk 0:00:02.5]}
41... Kg5 {[%clk 0:00:44.9]} 42. Rg8+ {[%clk 0:00:02.8]} 42... Kf5 {[%clk
0:00:32.7]} 43. Rf8+ {[%clk 0:00:03.1]} 43... Ke6 {[%clk 0:00:25]} 44. Rg8
{[%clk 0:00:03.4]} 44... f3 {[%clk 0:00:19.2]} 45. Kd2 {[%clk 0:00:01.6]} 45...
Rd7 {[%clk 0:00:17.9]} 46. Ke3 {[%clk 0:00:01.4]} 46... Rc7 {[%clk 0:00:18]} 47.
Rg7 {[%clk 0:00:01.3]} 47... Rxg7 {[%clk 0:00:17.2]} 0-1

[Event "Early-Titled-Tuesday-Blitz-May-14-2024"]
[Site "Chess.com"]
[Date "2024.05.14"]
[Round "1"]
[White "lcmil"]
[Black "chess_sharparchitect"]
[Result "0-1"]
[WhiteElo "2604"]
[BlackElo "2310"]
[TimeControl "180+1"]
[EndTime "8:07:32 PDT"]
[Termination "chess_sharparchitect won by resignation"]

1. e4 {[%clk 0:03:00.9]} 1... c5 {[%clk 0:02:55.8]} 2. Nf3 {[%clk 0:03:00.7]}
2... d6 {[%clk 0:02:52.9]} 3. d4 {[%clk 0:03:01.2]} 3... cxd4 {[%clk 0:02:50.8]}
4. Nxd4 {[%clk 0:03:02.1]} 4... Nf6 {[%clk 0:02:50.2]} 5. Nc3 {[%clk 0:03:02.7]}
5... a6 {[%clk 0:02:49.3]} 6. Rg1 {[%clk 0:03:03.2]} 6... e5 {[%clk 0:02:42.9]}
7. Nb3 {[%clk 0:03:00.3]} 7... h5 {[%clk 0:02:35.4]} 8. Bg5 {[%clk 0:02:59]}
8... Be7 {[%clk 0:02:28.2]} 9. Qd2 {[%clk 0:02:57.2]} 9... Be6 {[%clk
0:02:22.6]} 10. O-O-O {[%clk 0:02:49.7]} 10... Nbd7 {[%clk 0:02:17.1]} 11. f4
{[%clk 0:02:30]} 11... exf4 {[%clk 0:02:04.7]} 12. Bxf4 {[%clk 0:02:30.9]} 12...
Ne5 {[%clk 0:02:04.7]} 13. Nd4 {[%clk 0:02:30.3]} 13... Bg4 {[%clk 0:01:52.4]}
14. Be2 {[%clk 0:02:28]} 14... g6 {[%clk 0:01:43.2]} 15. Rgf1 {[%clk 0:02:19.1]}
15... Rc8 {[%clk 0:01:38.3]} 16. h3 {[%clk 0:01:57.1]} 16... Bxe2 {[%clk
0:01:36]} 17. Qxe2 {[%clk 0:01:58]} 17... Qa5 {[%clk 0:01:21.3]} 18. Nb3 {[%clk
0:01:41.4]} 18... Qc7 {[%clk 0:01:08.9]} 19. Bg5 {[%clk 0:01:40.5]} 19... Ned7
{[%clk 0:00:49.1]} 20. Rf2 {[%clk 0:01:40.3]} 20... O-O {[%clk 0:00:39.8]} 21.
Rdf1 {[%clk 0:01:37.8]} 21... Qd8 {[%clk 0:00:29.9]} 22. g4 {[%clk 0:01:15]}
22... hxg4 {[%clk 0:00:24.2]} 23. hxg4 {[%clk 0:01:15.9]} 23... Nxe4 {[%clk
0:00:23.9]} 24. Bxe7 {[%clk 0:01:06.9]} 24... Nxc3 {[%clk 0:00:23.4]} 25. bxc3
{[%clk 0:00:51.4]} 25... Qc7 {[%clk 0:00:23.2]} 26. Bxf8 {[%clk 0:00:46.7]}
26... Rxf8 {[%clk 0:00:23.2]} 27. Qd3 {[%clk 0:00:37.9]} 27... Ne5 {[%clk
0:00:22.2]} 28. Qd4 {[%clk 0:00:38.1]} 28... Qd7 {[%clk 0:00:18.4]} 29. Rf6
{[%clk 0:00:36.4]} 29... Qb5 {[%clk 0:00:13.8]} 30. Rxd6 {[%clk 0:00:26.3]}
30... Qxf1+ {[%clk 0:00:13.6]} 31. Kb2 {[%clk 0:00:26.7]} 31... Nc4+ {[%clk
0:00:13.7]} 32. Qxc4 {[%clk 0:00:26.3]} 32... Qxc4 {[%clk 0:00:13]} 33. Rd3
{[%clk 0:00:27.2]} 33... Qxg4 {[%clk 0:00:12.8]} 34. Rd4 {[%clk 0:00:28.1]}
34... Qe2 {[%clk 0:00:12.3]} 35. Nd2 {[%clk 0:00:28.8]} 35... Rc8 {[%clk
0:00:11.7]} 36. Ne4 {[%clk 0:00:28.9]} 36... Qb5+ {[%clk 0:00:10.4]} 37. Kc1
{[%clk 0:00:28.1]} 37... Rc6 {[%clk 0:00:08.2]} 38. Rd8+ {[%clk 0:00:27.1]}
38... Kg7 {[%clk 0:00:08.1]} 39. Rd3 {[%clk 0:00:27.3]} 39... Qf5 {[%clk
0:00:07.2]} 40. Nd2 {[%clk 0:00:26.8]} 40... Qf4 {[%clk 0:00:07.4]} 41. Kd1
{[%clk 0:00:26.6]} 41... Rd6 {[%clk 0:00:07.8]} 42. Nc4 {[%clk 0:00:25.3]} 42...
Rxd3+ {[%clk 0:00:07.5]} 43. cxd3 {[%clk 0:00:26.2]} 43... Qf3+ {[%clk
0:00:07.5]} 44. Kc2 {[%clk 0:00:27.1]} 44... b5 {[%clk 0:00:07.6]} 45. Nd2
{[%clk 0:00:28]} 45... Qf2 {[%clk 0:00:07.7]} 46. Kd1 {[%clk 0:00:27.9]} 46...
g5 {[%clk 0:00:08.1]} 47. Ne4 {[%clk 0:00:28.8]} 47... Qg1+ {[%clk 0:00:08.5]}
48. Ke2 {[%clk 0:00:28.9]} 48... f5 {[%clk 0:00:09.1]} 49. Nf2 {[%clk
0:00:28.8]} 49... Qh2 {[%clk 0:00:09.4]} 0-1

[Event "Early-Titled-Tuesday-Blitz-May-14-2024"]
[Site "Chess.com"]
[Date "2024.05.14"]
[Round "1"]
[White "SAInt_666"]
[Black "ccccvhhhj"]
[Result "1-0"]
[WhiteElo "2786"]
[BlackElo "2450"]
[TimeControl "180+1"]
[EndTime "8:07:33 PDT"]
[Termination "SAInt_666 won on time"]

1. e4 {[%clk 0:02:55.1]} 1... e6 {[%clk 0:03:00]} 2. d4 {[%clk 0:02:54.7]} 2...
d5 {[%clk 0:03:00.9]} 3. e5 {[%clk 0:02:55.3]} 3... c5 {[%clk 0:03:01.2]} 4. c3
{[%clk 0:02:55.4]} 4... Nc6 {[%clk 0:03:02.1]} 5. Nf3 {[%clk 0:02:56]} 5... Bd7
{[%clk 0:03:03]} 6. Be2 {[%clk 0:02:55.8]} 6... Qc7 {[%clk 0:03:03.3]} 7. O-O
{[%clk 0:02:55.6]} 7... f6 {[%clk 0:03:03.6]} 8. Re1 {[%clk 0:02:55.4]} 8...
O-O-O {[%clk 0:03:03.2]} 9. Bf4 {[%clk 0:02:35.5]} 9... h6 {[%clk 0:03:01.2]}
10. Bg3 {[%clk 0:02:34]} 10... f5 {[%clk 0:03:01.7]} 11. Nh4 {[%clk 0:02:12.6]}
11... g5 {[%clk 0:02:25.3]} 12. Ng6 {[%clk 0:02:12.6]} 12... f4 {[%clk
0:02:24.1]} 13. Nxh8 {[%clk 0:02:07.3]} 13... Be8 {[%clk 0:02:11.4]} 14. Bh5
{[%clk 0:02:00.5]} 14... fxg3 {[%clk 0:02:08.8]} 15. fxg3 {[%clk 0:01:49.2]}
15... Qg7 {[%clk 0:01:19.5]} 16. Bxe8 {[%clk 0:01:45.7]} 16... Rxe8 {[%clk
0:01:20.4]} 17. Qh5 {[%clk 0:01:46.1]} 17... Kd7 {[%clk 0:00:50.6]} 18. Ng6
{[%clk 0:01:41.9]} 18... cxd4 {[%clk 0:00:49.6]} 19. Nxf8+ {[%clk 0:01:32.5]}
19... Rxf8 {[%clk 0:00:49.5]} 20. cxd4 {[%clk 0:01:33.2]} 20... Nxd4 {[%clk
0:00:44.8]} 21. Na3 {[%clk 0:01:33.8]} 21... Ne7 {[%clk 0:00:32.2]} 22. Rad1
{[%clk 0:01:30.9]} 22... Nec6 {[%clk 0:00:30.7]} 23. Qg4 {[%clk 0:01:21.3]}
23... Nf5 {[%clk 0:00:28.3]} 24. Nb5 {[%clk 0:01:11.8]} 24... a6 {[%clk
0:00:28.3]} 25. Nc3 {[%clk 0:01:10.6]} 25... Kc8 {[%clk 0:00:21.3]} 26. Qa4
{[%clk 0:00:55.9]} 26... Qe7 {[%clk 0:00:14.8]} 27. Rc1 {[%clk 0:00:49.9]} 27...
Qc5+ {[%clk 0:00:14.9]} 28. Kh1 {[%clk 0:00:50.4]} 28... Qf2 {[%clk 0:00:12.6]}
29. Rf1 {[%clk 0:00:42.9]} 29... Qd2 {[%clk 0:00:06.1]} 30. Nb1 {[%clk
0:00:37.4]} 30... Qd3 {[%clk 0:00:05.5]} 31. Rf3 {[%clk 0:00:34.1]} 31... Qe4
{[%clk 0:00:03.3]} 32. Qxe4 {[%clk 0:00:30.1]} 32... dxe4 {[%clk 0:00:04.2]} 33.
Rff1 {[%clk 0:00:30.9]} 33... e3 {[%clk 0:00:03.5]} 34. g4 {[%clk 0:00:24.4]}
34... e2 {[%clk 0:00:04.1]} 35. Rf2 {[%clk 0:00:23]} 35... Kb8 {[%clk
0:00:01.5]} 36. gxf5 {[%clk 0:00:22.5]} 36... exf5 {[%clk 0:00:02.4]} 37. Rxe2
{[%clk 0:00:20.7]} 37... f4 {[%clk 0:00:02.2]} 38. e6 {[%clk 0:00:20.1]} 38...
Re8 {[%clk 0:00:02.5]} 39. Nc3 {[%clk 0:00:19.9]} 39... Kc7 {[%clk 0:00:02.9]}
40. Rd1 {[%clk 0:00:20.2]} 40... Nb4 {[%clk 0:00:02]} 41. Rd7+ {[%clk
0:00:20.1]} 41... Kc6 {[%clk 0:00:02.3]} 42. a3 {[%clk 0:00:19.8]} 1-0

[Event "Early-Titled-Tuesday-Blitz-May-14-2024"]
[Site "Chess.com"]
[Date "2024.05.14"]
[Round "1"]
[White "ItsCheckM8Mate"]
[Black "KogotBobra17"]
[Result "0-1"]
[WhiteElo "2367"]
[BlackElo "2689"]
[TimeControl "180+1"]
[EndTime "8:07:36 PDT"]
[Termination "KogotBobra17 won on time"]

1. d4 {[%clk 0:02:53.7]} 1... Nf6 {[%clk 0:02:59.8]} 2. Nc3 {[%clk 0:02:51.9]}
2... d5 {[%clk 0:02:59.9]} 3. Bf4 {[%clk 0:02:51.5]} 3... c5 {[%clk 0:03:00.4]}
4. e3 {[%clk 0:02:42.3]} 4... cxd4 {[%clk 0:03:00.1]} 5. exd4 {[%clk 0:02:42.4]}
5... Bg4 {[%clk 0:03:00.7]} 6. Be2 {[%clk 0:02:34.9]} 6... Bxe2 {[%clk
0:03:00.4]} 7. Qxe2 {[%clk 0:02:35]} 7... a6 {[%clk 0:02:58.7]} 8. Nf3 {[%clk
0:02:33.3]} 8... e6 {[%clk 0:02:58.9]} 9. O-O {[%clk 0:02:31]} 9... Be7 {[%clk
0:02:55.3]} 10. Ne5 {[%clk 0:02:28.7]} 10... O-O {[%clk 0:02:54.9]} 11. Rad1
{[%clk 0:02:27.9]} 11... Nbd7 {[%clk 0:02:50]} 12. Rd3 {[%clk 0:02:26.9]} 12...
Qb6 {[%clk 0:02:29.2]} 13. Rfd1 {[%clk 0:02:13.2]} 13... Nxe5 {[%clk 0:01:44.5]}
14. Bxe5 {[%clk 0:01:55.2]} 14... Nd7 {[%clk 0:01:30.7]} 15. Rg3 {[%clk
0:01:43.3]} 15... f6 {[%clk 0:01:12.3]} 16. Bf4 {[%clk 0:01:21.9]} 16... Rf7
{[%clk 0:01:12]} 17. b3 {[%clk 0:01:16.3]} 17... Rc8 {[%clk 0:01:07.7]} 18. h4
{[%clk 0:01:12.9]} 18... Nf8 {[%clk 0:00:49.1]} 19. h5 {[%clk 0:01:11.9]} 19...
Kh8 {[%clk 0:00:46.7]} 20. Qg4 {[%clk 0:00:58.6]} 20... Qc6 {[%clk 0:00:46.7]}
21. Rdd3 {[%clk 0:00:34.7]} 21... Qd7 {[%clk 0:00:32.9]} 22. Bh6 {[%clk
0:00:27.2]} 22... Bd6 {[%clk 0:00:30.2]} 23. Bf4 {[%clk 0:00:26]} 23... Bb4
{[%clk 0:00:26.8]} 24. Kh2 {[%clk 0:00:15.7]} 24... b5 {[%clk 0:00:26.8]} 25.
Kh1 {[%clk 0:00:15]} 25... Be7 {[%clk 0:00:26.7]} 26. Bh6 {[%clk 0:00:14.6]}
26... Bd6 {[%clk 0:00:27.1]} 27. Bf4 {[%clk 0:00:14.6]} 27... b4 {[%clk
0:00:27.6]} 28. Bxd6 {[%clk 0:00:13.6]} 28... Qxd6 {[%clk 0:00:28.5]} 29. Na4
{[%clk 0:00:11.3]} 29... Rxc2 {[%clk 0:00:28.6]} 30. Nc5 {[%clk 0:00:10.6]}
30... Rxa2 {[%clk 0:00:28.9]} 31. Rde3 {[%clk 0:00:08.9]} 31... e5 {[%clk
0:00:18.6]} 32. dxe5 {[%clk 0:00:06.2]} 32... Qxc5 {[%clk 0:00:19]} 33. exf6
{[%clk 0:00:06.7]} 33... Qc1+ {[%clk 0:00:09.4]} 34. Kh2 {[%clk 0:00:06.4]}
34... Qb2 {[%clk 0:00:09.7]} 35. Re8 {[%clk 0:00:04.6]} 35... Qxf6 {[%clk
0:00:08.6]} 36. Rf3 {[%clk 0:00:02.4]} 36... Rxf2 {[%clk 0:00:03.2]} 37. Rxf6
{[%clk 0:00:01.8]} 37... R2xf6 {[%clk 0:00:04.1]} 38. Qc8 {[%clk 0:00:01.4]}
38... h6 {[%clk 0:00:03.9]} 39. Qd8 {[%clk 0:00:00.5]} 39... Rf5 {[%clk
0:00:04.4]} 0-1

[Event "Early-Titled-Tuesday-Blitz-May-14-2024"]
[Site "Chess.com"]
[Date "2024.05.14"]
[Round "1"]
[White "Djager97"]
[Black "Msb2"]
[Result "0-1"]
[WhiteElo "2543"]
[BlackElo "3056"]
[TimeControl "180+1"]
[EndTime "8:07:37 PDT"]
[Termination "Msb2 won on time"]

1. e4 {[%clk 0:03:00.9]} 1... e6 {[%clk 0:03:00.2]} 2. d4 {[%clk 0:03:00.9]}
2... d5 {[%clk 0:03:00.9]} 3. Nc3 {[%clk 0:03:01.4]} 3... Nf6 {[%clk 0:03:01.4]}
4. Bg5 {[%clk 0:02:54.4]} 4... dxe4 {[%clk 0:03:01.5]} 5. Nxe4 {[%clk
0:02:54.8]} 5... Be7 {[%clk 0:03:01.9]} 6. Nxf6+ {[%clk 0:02:53.1]} 6... Bxf6
{[%clk 0:03:02.8]} 7. Bxf6 {[%clk 0:02:53.6]} 7... Qxf6 {[%clk 0:03:03.6]} 8.
Nf3 {[%clk 0:02:54.2]} 8... O-O {[%clk 0:03:04.2]} 9. Bd3 {[%clk 0:02:53.4]}
9... c5 {[%clk 0:03:03.9]} 10. O-O {[%clk 0:02:44.9]} 10... cxd4 {[%clk
0:03:03.2]} 11. Nxd4 {[%clk 0:02:45.8]} 11... e5 {[%clk 0:03:03.9]} 12. Nb3
{[%clk 0:02:39.4]} 12... Nc6 {[%clk 0:03:02.6]} 13. Qe2 {[%clk 0:02:34.6]} 13...
Bf5 {[%clk 0:02:59.4]} 14. c3 {[%clk 0:02:25.3]} 14... Bxd3 {[%clk 0:02:52]} 15.
Qxd3 {[%clk 0:02:26.2]} 15... Rad8 {[%clk 0:02:52.5]} 16. Qe3 {[%clk 0:02:22.9]}
16... Rd6 {[%clk 0:02:45.9]} 17. Nc5 {[%clk 0:02:17.2]} 17... Qe7 {[%clk
0:02:44.4]} 18. Ne4 {[%clk 0:02:09.8]} 18... Rd5 {[%clk 0:02:44.5]} 19. Rad1
{[%clk 0:02:08.1]} 19... Rfd8 {[%clk 0:02:44.4]} 20. Rxd5 {[%clk 0:01:57.6]}
20... Rxd5 {[%clk 0:02:45.3]} 21. g3 {[%clk 0:01:53.2]} 21... f5 {[%clk
0:02:42.2]} 22. Nd2 {[%clk 0:01:53.1]} 22... Qc5 {[%clk 0:02:31.9]} 23. Qxc5
{[%clk 0:01:28.6]} 23... Rxc5 {[%clk 0:02:32.8]} 24. Rd1 {[%clk 0:01:27.2]}
24... Rd5 {[%clk 0:02:33.2]} 25. Kf1 {[%clk 0:01:27.1]} 25... e4 {[%clk
0:02:31.2]} 26. Ke2 {[%clk 0:01:27.1]} 26... Ne5 {[%clk 0:02:31.8]} 27. Rf1
{[%clk 0:01:15.3]} 27... Nd3 {[%clk 0:02:15.6]} 28. b3 {[%clk 0:01:11.8]} 28...
Rc5 {[%clk 0:02:01]} 29. c4 {[%clk 0:01:09.1]} 29... Nb4 {[%clk 0:02:01.4]} 30.
f3 {[%clk 0:01:04.4]} 30... exf3+ {[%clk 0:01:59.9]} 31. Nxf3 {[%clk 0:01:03.6]}
31... b5 {[%clk 0:01:50]} 32. cxb5 {[%clk 0:00:46.6]} 32... Rc2+ {[%clk
0:01:47]} 33. Ke3 {[%clk 0:00:45.3]} 33... Rxa2 {[%clk 0:01:45.1]} 34. Rd1
{[%clk 0:00:41.5]} 34... Rb2 {[%clk 0:01:38.8]} 35. Rd8+ {[%clk 0:00:38]} 35...
Kf7 {[%clk 0:01:39.2]} 36. Nd4 {[%clk 0:00:38.6]} 36... Ra2 {[%clk 0:01:17.1]}
37. Nxf5 {[%clk 0:00:35.2]} 37... Kf6 {[%clk 0:01:17.5]} 38. Rf8+ {[%clk
0:00:34]} 38... Ke5 {[%clk 0:01:16.9]} 39. Nxg7 {[%clk 0:00:32.6]} 39... Rb2
{[%clk 0:01:17.5]} 40. Rf5+ {[%clk 0:00:23.1]} 40... Kd6 {[%clk 0:01:17.2]} 41.
Rf6+ {[%clk 0:00:23.4]} 41... Ke7 {[%clk 0:01:16.5]} 42. Rh6 {[%clk 0:00:20.6]}
42... Kf7 {[%clk 0:01:16.8]} 43. Nf5 {[%clk 0:00:19.7]} 43... Rxb3+ {[%clk
0:01:16.6]} 44. Ke4 {[%clk 0:00:20.2]} 44... Rb1 {[%clk 0:01:16.4]} 45. Rxh7+
{[%clk 0:00:20.3]} 45... Kg6 {[%clk 0:01:16.6]} 46. Rg7+ {[%clk 0:00:18.1]}
46... Kf6 {[%clk 0:01:16.8]} 47. g4 {[%clk 0:00:18]} 47... Re1+ {[%clk
0:01:06.4]} 48. Kd4 {[%clk 0:00:18.1]} 48... Nc2+ {[%clk 0:01:02.9]} 49. Kc5
{[%clk 0:00:17.6]} 49... Re5+ {[%clk 0:01:01.4]} 50. Kd6 {[%clk 0:00:06.3]}
50... Rxf5 {[%clk 0:00:44.7]} 51. gxf5 {[%clk 0:00:07.2]} 51... Kxg7 {[%clk
0:00:45.4]} 52. Ke7 {[%clk 0:00:05.8]} 52... Nd4 {[%clk 0:00:46.1]} 53. f6+
{[%clk 0:00:06.2]} 53... Kg6 {[%clk 0:00:46.7]} 54. f7 {[%clk 0:00:05.9]} 54...
Nf5+ {[%clk 0:00:47.5]} 55. Ke8 {[%clk 0:00:05.8]} 55... Nd6+ {[%clk 0:00:47.9]}
56. Kd7 {[%clk 0:00:04.2]} 56... Nxf7 {[%clk 0:00:48.4]} 57. Kc7 {[%clk
0:00:03.8]} 57... Kh5 {[%clk 0:00:43.2]} 0-1

[Event "Early-Titled-Tuesday-Blitz-May-14-2024"]
[Site "Chess.com"]
[Date "2024.05.14"]
[Round "1"]
[White "brunomorado"]
[Black "MatyChess1"]
[Result "1/2-1/2"]
[WhiteElo "2363"]
[BlackElo "2659"]
[TimeControl "180+1"]
[EndTime "8:07:37 PDT"]
[Termination "Game drawn by repetition"]

1. d4 {[%clk 0:03:00.3]} 1... Nf6 {[%clk 0:02:59]} 2. Nc3 {[%clk 0:03:00.8]}
2... d5 {[%clk 0:02:58.4]} 3. Bg5 {[%clk 0:03:00.8]} 3... c6 {[%clk 0:02:56.3]}
4. Qd3 {[%clk 0:03:00]} 4... g6 {[%clk 0:02:55.6]} 5. f3 {[%clk 0:02:59.9]} 5...
Na6 {[%clk 0:02:54.8]} 6. e4 {[%clk 0:02:55.1]} 6... Bg7 {[%clk 0:02:46.9]} 7.
e5 {[%clk 0:02:54.6]} 7... Bf5 {[%clk 0:02:42.8]} 8. Qd2 {[%clk 0:02:53.2]} 8...
Nd7 {[%clk 0:02:32.7]} 9. Bxa6 {[%clk 0:02:48.5]} 9... bxa6 {[%clk 0:02:31.3]}
10. Nge2 {[%clk 0:02:39.6]} 10... f6 {[%clk 0:02:29.7]} 11. exf6 {[%clk
0:02:31]} 11... exf6 {[%clk 0:02:30.6]} 12. Bf4 {[%clk 0:02:27.9]} 12... O-O
{[%clk 0:02:26.8]} 13. Na4 {[%clk 0:02:22.4]} 13... Re8 {[%clk 0:02:24.1]} 14.
O-O {[%clk 0:02:21.4]} 14... Nb6 {[%clk 0:02:08.8]} 15. Nxb6 {[%clk 0:02:11.3]}
15... axb6 {[%clk 0:02:08.4]} 16. Ng3 {[%clk 0:02:02]} 16... Be6 {[%clk
0:02:08.4]} 17. Rfe1 {[%clk 0:01:58.9]} 17... Ra7 {[%clk 0:02:08.2]} 18. Re2
{[%clk 0:01:57.2]} 18... Rae7 {[%clk 0:02:01]} 19. Rae1 {[%clk 0:01:55]} 19...
a5 {[%clk 0:01:45.3]} 20. h4 {[%clk 0:01:44]} 20... Qd7 {[%clk 0:01:40.1]} 21.
h5 {[%clk 0:01:43.3]} 21... g5 {[%clk 0:01:37.1]} 22. Be3 {[%clk 0:01:40.8]}
22... h6 {[%clk 0:01:37.1]} 23. Bf2 {[%clk 0:01:33]} 23... Bf8 {[%clk
0:01:33.1]} 24. Qd3 {[%clk 0:01:22.4]} 24... Bf7 {[%clk 0:01:12.4]} 25. Rxe7
{[%clk 0:01:11.5]} 25... Rxe7 {[%clk 0:01:13.3]} 26. Rxe7 {[%clk 0:01:10.4]}
26... Qxe7 {[%clk 0:01:14.2]} 27. Nf5 {[%clk 0:01:08.6]} 27... Qb4 {[%clk
0:01:13]} 28. Bg3 {[%clk 0:00:19.5]} 28... Bxh5 {[%clk 0:01:06.2]} 29. c3 {[%clk
0:00:19.3]} 29... Qxb2 {[%clk 0:00:55.9]} 30. Bd6 {[%clk 0:00:19.6]} 30... Qc1+
{[%clk 0:00:52.6]} 31. Kf2 {[%clk 0:00:17.3]} 31... Bxd6 {[%clk 0:00:18]} 32.
Nxd6 {[%clk 0:00:18.2]} 32... Qf4 {[%clk 0:00:18.6]} 33. Nc8 {[%clk 0:00:16.8]}
33... b5 {[%clk 0:00:09.6]} 34. Ne7+ {[%clk 0:00:16.3]} 34... Kg7 {[%clk
0:00:06.9]} 35. Nxc6 {[%clk 0:00:17.2]} 35... Qd6 {[%clk 0:00:03.8]} 36. Qxb5
{[%clk 0:00:17.4]} 36... Be8 {[%clk 0:00:04.1]} 37. Qb7+ {[%clk 0:00:17.4]}
37... Kg6 {[%clk 0:00:02.4]} 38. Ne7+ {[%clk 0:00:17.6]} 38... Kh5 {[%clk
0:00:02.6]} 39. Nf5 {[%clk 0:00:17.5]} 39... Qf4 {[%clk 0:00:01.3]} 40. Ng7+
{[%clk 0:00:17.8]} 40... Kg6 {[%clk 0:00:01.2]} 41. Nxe8 {[%clk 0:00:18.7]}
41... Qd2+ {[%clk 0:00:01.1]} 42. Kg3 {[%clk 0:00:18.9]} 42... Qf4+ {[%clk
0:00:01.8]} 43. Kf2 {[%clk 0:00:19.8]} 43... Qd2+ {[%clk 0:00:02.1]} 44. Kg1
{[%clk 0:00:20.5]} 44... Qe1+ {[%clk 0:00:02.7]} 45. Kh2 {[%clk 0:00:21]} 45...
Qh4+ {[%clk 0:00:03.6]} 46. Kg1 {[%clk 0:00:21.5]} 46... Qe1+ {[%clk 0:00:04.3]}
47. Kh2 {[%clk 0:00:22]} 47... Qh4+ {[%clk 0:00:04.1]} 48. Kg1 {[%clk
0:00:22.4]} 48... Qe1+ {[%clk 0:00:04.4]} 1/2-1/2